[Event "Titled Tuesday Blitz April 11 Late 2023"]
[White "Andreikin, Dmitry"]
[Black "Leitao, Rafael"]
[WhiteFideId "4158814"]
[BlackFideId "2101246"]
[WhiteElo "2736"]
[BlackElo "2609"]
[Result "0-1"]
[Round "03"]
[TimeControl "180+2"]
[Date "2023.04.11"]
[WhiteClock "0:01:09"]
[BlackClock "0:00:34"]

1. Nf3 {[%clk 0:03:00]}  Nf6 {[%clk 0:02:59]} 2. c4 {[%clk 0:03:00]}  g6 {[%clk 0:02:59]} 3. b4 {[%clk 0:02:58]}  Bg7 {[%clk 0:02:59]} 4. Bb2 {[%clk 0:02:59]}  O-O {[%clk 0:02:59]} 5. g3 {[%clk 0:02:59]}  d6 {[%clk 0:02:54]} 6. Bg2 {[%clk 0:02:59]}  e5 {[%clk 0:02:53]} 7. d3 {[%clk 0:02:59]}  c6 {[%clk 0:02:41]} 8. O-O {[%clk 0:02:57]}  h6 {[%clk 0:02:40]} 9. a4 {[%clk 0:02:57]}  Be6 {[%clk 0:02:38]} 10. b5 {[%clk 0:02:56]}  Qc8 {[%clk 0:02:32]} 11. Nc3 {[%clk 0:02:51]}  Bh3 {[%clk 0:02:30]} 12. e4 {[%clk 0:02:50]}  Bxg2 {[%clk 0:02:29]} 13. Kxg2 {[%clk 0:02:51]}  Nbd7 {[%clk 0:02:26]} 14. Ba3 {[%clk 0:02:51]}  Qc7 {[%clk 0:02:25]} 15. Nd2 {[%clk 0:02:47]}  Nc5 {[%clk 0:02:22]} 16. Nb3 {[%clk 0:02:47]}  Ne6 {[%clk 0:02:16]} 17. a5 {[%clk 0:02:46]}  Qd7 {[%clk 0:02:12]} 18. a6 {[%clk 0:02:45]}  Ng5 {[%clk 0:01:55]} 19. f3 {[%clk 0:02:40]}  bxa6 {[%clk 0:01:36]} 20. bxc6 {[%clk 0:02:39]}  Qxc6 {[%clk 0:01:37]} 21. Na5 {[%clk 0:02:33]}  Qd7 {[%clk 0:01:36]} 22. Ra2 {[%clk 0:02:29]}  Rab8 {[%clk 0:01:31]} 23. Qa4 {[%clk 0:02:26]}  Qh3+ {[%clk 0:01:30]} 24. Kg1 {[%clk 0:02:26]}  Nh5 {[%clk 0:01:26]} 25. Rg2 {[%clk 0:02:22]}  f5 {[%clk 0:01:25]} 26. Bxd6 {[%clk 0:02:22]}  fxe4 {[%clk 0:01:23]} 27. Bxf8 {[%clk 0:02:21]}  Nxf3+ {[%clk 0:01:18]} 28. Rxf3 {[%clk 0:02:12]}  exf3 {[%clk 0:01:19]} 29. Rf2 {[%clk 0:02:11]}  Rxf8 {[%clk 0:01:16]} 30. Ne4 {[%clk 0:02:10]}  Nf6 {[%clk 0:01:04]} 31. Qc6 {[%clk 0:01:49]}  Ng4 {[%clk 0:00:53]} 32. Qc5 {[%clk 0:01:27]}  Nxf2 {[%clk 0:00:47]} 33. Qxf2 {[%clk 0:01:28]}  Rb8 {[%clk 0:00:45]} 34. Nd2 {[%clk 0:01:14]}  e4 {[%clk 0:00:43]} 35. Nab3 {[%clk 0:01:13]}  e3 {[%clk 0:00:39]} 36. Qxf3 {[%clk 0:01:13]}  exd2 {[%clk 0:00:39]} 37. Nxd2 {[%clk 0:01:14]}  Bd4+ {[%clk 0:00:38]} 38. Kh1 {[%clk 0:01:15]}  Qe6 {[%clk 0:00:36]} 39. Kg2 {[%clk 0:01:09]}  Rf8 {[%clk 0:00:34]} 0-1


[Site "https://www.chess.com"]

[Event "Titled Tuesday Blitz April 11 Late 2023"]
[White "Tang, Andrew"]
[Black "Riehle, Marco"]
[WhiteFideId "2059630"]
[BlackFideId "12904392"]
[WhiteElo "2596"]
[BlackElo "2462"]
[Result "1-0"]
[Round "03"]
[TimeControl "180+2"]
[Date "2023.04.11"]
[WhiteClock "0:00:08"]
[BlackClock "0:00:43"]

1. d4 {[%clk 0:02:50]}  d5 {[%clk 0:02:58]} 2. Bf4 {[%clk 0:02:50]}  h5 {[%clk 0:02:58]} 3. Nf3 {[%clk 0:02:43]}  e6 {[%clk 0:02:57]} 4. e3 {[%clk 0:02:42]}  f6 {[%clk 0:02:55]} 5. h3 {[%clk 0:02:37]}  g5 {[%clk 0:02:54]} 6. Bg3 {[%clk 0:02:37]}  h4 {[%clk 0:02:54]} 7. Bh2 {[%clk 0:02:37]}  Bd6 {[%clk 0:02:54]} 8. c4 {[%clk 0:02:34]}  Bxh2 {[%clk 0:02:52]} 9. Nxh2 {[%clk 0:02:34]}  Ne7 {[%clk 0:02:50]} 10. Qc2 {[%clk 0:02:30]}  c5 {[%clk 0:02:44]} 11. dxc5 {[%clk 0:01:56]}  Nbc6 {[%clk 0:02:42]} 12. Nc3 {[%clk 0:01:52]}  Qa5 {[%clk 0:02:38]} 13. a3 {[%clk 0:01:48]}  Qxc5 {[%clk 0:02:36]} 14. b4 {[%clk 0:01:48]}  Qb6 {[%clk 0:02:35]} 15. Rd1 {[%clk 0:01:28]}  Ne5 {[%clk 0:02:13]} 16. cxd5 {[%clk 0:01:04]}  exd5 {[%clk 0:02:13]} 17. Bb5+ {[%clk 0:01:03]}  Kf7 {[%clk 0:02:08]} 18. Be2 {[%clk 0:00:50]}  Be6 {[%clk 0:02:04]} 19. Nf3 {[%clk 0:00:44]}  N5g6 {[%clk 0:01:51]} 20. Nd4 {[%clk 0:00:42]}  Rac8 {[%clk 0:01:48]} 21. Qb3 {[%clk 0:00:42]}  Rhd8 {[%clk 0:01:46]} 22. O-O {[%clk 0:00:39]}  Kg7 {[%clk 0:01:44]} 23. Na4 {[%clk 0:00:29]}  Qd6 {[%clk 0:01:39]} 24. Nc5 {[%clk 0:00:30]}  Bf7 {[%clk 0:01:29]} 25. Nxb7 {[%clk 0:00:29]}  Qb8 {[%clk 0:01:23]} 26. Nxd8 {[%clk 0:00:29]}  Rxd8 {[%clk 0:01:24]} 27. Rd2 {[%clk 0:00:27]}  Ne5 {[%clk 0:01:24]} 28. Rfd1 {[%clk 0:00:21]}  Rc8 {[%clk 0:01:19]} 29. Qb2 {[%clk 0:00:20]}  Nc4 {[%clk 0:01:12]} 30. Bxc4 {[%clk 0:00:20]}  Rxc4 {[%clk 0:01:13]} 31. Rc1 {[%clk 0:00:19]}  Qc7 {[%clk 0:01:03]} 32. Rdc2 {[%clk 0:00:18]}  Kg6 {[%clk 0:00:59]} 33. Nf3 {[%clk 0:00:18]}  Be6 {[%clk 0:00:53]} 34. Nd2 {[%clk 0:00:18]}  Rxc2 {[%clk 0:00:52]} 35. Qxc2+ {[%clk 0:00:18]}  Qxc2 {[%clk 0:00:51]} 36. Rxc2 {[%clk 0:00:19]}  Nf5 {[%clk 0:00:50]} 37. Rc7 {[%clk 0:00:18]}  d4 {[%clk 0:00:49]} 38. exd4 {[%clk 0:00:16]}  Nxd4 {[%clk 0:00:50]} 39. Rxa7 {[%clk 0:00:16]}  Ne2+ {[%clk 0:00:50]} 40. Kh2 {[%clk 0:00:17]}  f5 {[%clk 0:00:49]} 41. Ra6 {[%clk 0:00:16]}  Kf7 {[%clk 0:00:49]} 42. b5 {[%clk 0:00:17]}  g4 {[%clk 0:00:49]} 43. hxg4 {[%clk 0:00:15]}  fxg4 {[%clk 0:00:50]} 44. g3 {[%clk 0:00:14]}  h3 {[%clk 0:00:49]} 45. b6 {[%clk 0:00:14]}  Bd5 {[%clk 0:00:44]} 46. Ra5 {[%clk 0:00:10]}  Bc6 {[%clk 0:00:43]} 47. Rc5 {[%clk 0:00:10]}  Nd4 {[%clk 0:00:43]} 48. Rc4 {[%clk 0:00:08]}  Nf3+ {[%clk 0:00:43]} 49. Nxf3 {[%clk 0:00:08]}  Bxf3 {[%clk 0:00:44]} 50. Rf4+ {[%clk 0:00:08]}  Kg7 {[%clk 0:00:43]} 51. Rxf3 {[%clk 0:00:08]} 1-0


[Site "https://www.chess.com"]

[Event "Titled Tuesday Blitz April 11 Late 2023"]
[White "Alekseenko, Kirill"]
[Black "Martinez Ramirez, Lennis"]
[WhiteFideId "4135539"]
[BlackFideId "3509079"]
[WhiteElo "2683"]
[BlackElo "2410"]
[Result "1-0"]
[Round "03"]
[TimeControl "180+2"]
[Date "2023.04.11"]
[WhiteClock "0:00:10"]
[BlackClock "0:00:18"]

1. d4 {[%clk 0:03:00]}  e6 {[%clk 0:03:00]} 2. Bf4 {[%clk 0:02:55]}  Nf6 {[%clk 0:02:58]} 3. Nc3 {[%clk 0:02:53]}  Bd6 {[%clk 0:02:57]} 4. Bg3 {[%clk 0:02:49]}  Bxg3 {[%clk 0:02:56]} 5. hxg3 {[%clk 0:02:49]}  d5 {[%clk 0:02:57]} 6. e3 {[%clk 0:02:48]}  b6 {[%clk 0:02:57]} 7. Nf3 {[%clk 0:02:46]}  Nbd7 {[%clk 0:02:50]} 8. Bb5 {[%clk 0:02:28]}  Bb7 {[%clk 0:02:49]} 9. Ne5 {[%clk 0:02:27]}  a6 {[%clk 0:02:48]} 10. Bc6 {[%clk 0:02:16]}  Qc8 {[%clk 0:02:45]} 11. Qf3 {[%clk 0:01:56]}  Bxc6 {[%clk 0:02:44]} 12. Nxc6 {[%clk 0:01:57]}  Qb7 {[%clk 0:02:44]} 13. Ne5 {[%clk 0:01:57]}  Nxe5 {[%clk 0:02:44]} 14. dxe5 {[%clk 0:01:58]}  Nd7 {[%clk 0:02:44]} 15. Qg4 {[%clk 0:01:56]}  g6 {[%clk 0:02:42]} 16. f4 {[%clk 0:01:56]}  h5 {[%clk 0:02:42]} 17. Qg5 {[%clk 0:01:53]}  Qc8 {[%clk 0:02:37]} 18. g4 {[%clk 0:01:50]}  Qd8 {[%clk 0:02:37]} 19. Qxd8+ {[%clk 0:01:49]}  Rxd8 {[%clk 0:02:37]} 20. gxh5 {[%clk 0:01:47]}  Rxh5 {[%clk 0:02:34]} 21. Rxh5 {[%clk 0:01:46]}  gxh5 {[%clk 0:02:35]} 22. Kf2 {[%clk 0:01:38]}  f6 {[%clk 0:02:31]} 23. Rh1 {[%clk 0:01:26]}  fxe5 {[%clk 0:02:30]} 24. Rxh5 {[%clk 0:01:26]}  exf4 {[%clk 0:02:31]} 25. exf4 {[%clk 0:01:24]}  Nf6 {[%clk 0:02:28]} 26. Rh8+ {[%clk 0:01:19]}  Ke7 {[%clk 0:02:28]} 27. Rxd8 {[%clk 0:01:20]}  Kxd8 {[%clk 0:02:29]} 28. Kf3 {[%clk 0:01:21]}  c5 {[%clk 0:02:23]} 29. g4 {[%clk 0:01:19]}  Ke7 {[%clk 0:02:22]} 30. g5 {[%clk 0:01:16]}  Nd7 {[%clk 0:02:22]} 31. Kg4 {[%clk 0:01:16]}  Kf7 {[%clk 0:02:19]} 32. Ne2 {[%clk 0:01:13]}  b5 {[%clk 0:02:15]} 33. Ng1 {[%clk 0:01:13]}  b4 {[%clk 0:02:15]} 34. Nf3 {[%clk 0:01:12]}  a5 {[%clk 0:02:14]} 35. b3 {[%clk 0:01:11]}  Kg6 {[%clk 0:01:58]} 36. Nh4+ {[%clk 0:01:10]}  Kf7 {[%clk 0:01:57]} 37. Kh5 {[%clk 0:01:08]}  e5 {[%clk 0:01:53]} 38. f5 {[%clk 0:01:04]}  e4 {[%clk 0:01:53]} 39. Kg4 {[%clk 0:00:36]}  d4 {[%clk 0:01:10]} 40. Ng6 {[%clk 0:00:33]}  d3 {[%clk 0:01:09]} 41. cxd3 {[%clk 0:00:29]}  exd3 {[%clk 0:01:09]} 42. Kf3 {[%clk 0:00:30]}  c4 {[%clk 0:01:10]} 43. Ke3 {[%clk 0:00:22]}  a4 {[%clk 0:01:03]} 44. bxa4 {[%clk 0:00:15]}  Kg7 {[%clk 0:00:54]} 45. a5 {[%clk 0:00:15]}  Nc5 {[%clk 0:00:54]} 46. Ne5 {[%clk 0:00:12]}  b3 {[%clk 0:00:28]} 47. axb3 {[%clk 0:00:12]}  d2 {[%clk 0:00:18]} 48. Kxd2 {[%clk 0:00:10]}  Nxb3+ {[%clk 0:00:18]} 49. Kc3 {[%clk 0:00:10]}  Nxa5 {[%clk 0:00:19]} 50. f6+ {[%clk 0:00:11]}  Kh7 {[%clk 0:00:18]} 51. g6+ {[%clk 0:00:12]}  Kh6 {[%clk 0:00:18]} 52. f7 {[%clk 0:00:08]}  Kg7 {[%clk 0:00:18]} 53. Nd7 {[%clk 0:00:09]}  Nc6 {[%clk 0:00:16]} 54. f8=Q+ {[%clk 0:00:09]}  Kxg6 {[%clk 0:00:17]} 55. Qf6+ {[%clk 0:00:09]}  Kh5 {[%clk 0:00:17]} 56. Qxc6 {[%clk 0:00:10]}  Kg4 {[%clk 0:00:18]} 57. Qe4+ {[%clk 0:00:10]} 1-0


[Site "https://www.chess.com"]

[Event "Titled Tuesday Blitz April 11 Late 2023"]
[White "Pulpan, Jakub"]
[Black "Deac, Bogdan-Daniel"]
[WhiteFideId "302759"]
[BlackFideId "1226380"]
[WhiteElo "2484"]
[BlackElo "2649"]
[Result "0-1"]
[Round "03"]
[TimeControl "180+2"]
[Date "2023.04.11"]
[WhiteClock "0:00:05"]
[BlackClock "0:00:05"]

1. Nf3 {[%clk 0:02:57]}  c5 {[%clk 0:02:58]} 2. e3 {[%clk 0:02:52]}  Nf6 {[%clk 0:02:56]} 3. b3 {[%clk 0:02:52]}  g6 {[%clk 0:02:55]} 4. Bb2 {[%clk 0:02:52]}  Bg7 {[%clk 0:02:56]} 5. c4 {[%clk 0:02:52]}  O-O {[%clk 0:02:56]} 6. Nc3 {[%clk 0:02:47]}  b6 {[%clk 0:02:56]} 7. Be2 {[%clk 0:02:46]}  Bb7 {[%clk 0:02:56]} 8. O-O {[%clk 0:02:47]}  e6 {[%clk 0:02:56]} 9. d4 {[%clk 0:02:47]}  Qe7 {[%clk 0:02:55]} 10. Qd2 {[%clk 0:02:32]}  d6 {[%clk 0:02:54]} 11. Rfd1 {[%clk 0:02:32]}  Rd8 {[%clk 0:02:53]} 12. Rac1 {[%clk 0:02:33]}  Ne8 {[%clk 0:02:51]} 13. Qe1 {[%clk 0:02:19]}  f5 {[%clk 0:02:46]} 14. Rd2 {[%clk 0:02:14]}  g5 {[%clk 0:02:43]} 15. Qd1 {[%clk 0:02:08]}  g4 {[%clk 0:02:30]} 16. Ne1 {[%clk 0:02:08]}  cxd4 {[%clk 0:02:11]} 17. exd4 {[%clk 0:02:09]}  Bh6 {[%clk 0:02:11]} 18. Nd3 {[%clk 0:02:09]}  Nd7 {[%clk 0:02:05]} 19. Bf1 {[%clk 0:01:56]}  Bxd2 {[%clk 0:01:18]} 20. Qxd2 {[%clk 0:01:57]}  Ng7 {[%clk 0:01:18]} 21. Re1 {[%clk 0:01:51]}  Nf6 {[%clk 0:01:18]} 22. Nf4 {[%clk 0:01:39]}  Qf7 {[%clk 0:01:12]} 23. Qc2 {[%clk 0:01:24]}  Rd7 {[%clk 0:01:05]} 24. c5 {[%clk 0:01:07]}  Rc8 {[%clk 0:00:49]} 25. Bc4 {[%clk 0:00:53]}  d5 {[%clk 0:00:44]} 26. Bb5 {[%clk 0:00:53]}  bxc5 {[%clk 0:00:42]} 27. dxc5 {[%clk 0:00:45]}  d4 {[%clk 0:00:39]} 28. Bxd7 {[%clk 0:00:41]}  Nxd7 {[%clk 0:00:38]} 29. Nce2 {[%clk 0:00:17]}  e5 {[%clk 0:00:36]} 30. Nxd4 {[%clk 0:00:17]}  Rxc5 {[%clk 0:00:31]} 31. Qd2 {[%clk 0:00:18]}  exf4 {[%clk 0:00:20]} 32. Qxf4 {[%clk 0:00:18]}  Qd5 {[%clk 0:00:21]} 33. f3 {[%clk 0:00:16]}  gxf3 {[%clk 0:00:10]} 34. Nxf3 {[%clk 0:00:16]}  Nf8 {[%clk 0:00:04]} 35. h4 {[%clk 0:00:07]}  Nge6 {[%clk 0:00:03]} 36. Qg3+ {[%clk 0:00:06]}  Kf7 {[%clk 0:00:02]} 37. Kh2 {[%clk 0:00:04]}  Ke8 {[%clk 0:00:02]} 38. Re5 {[%clk 0:00:04]}  Qd6 {[%clk 0:00:02]} 39. Rxc5 {[%clk 0:00:03]}  Qxg3+ {[%clk 0:00:02]} 40. Kxg3 {[%clk 0:00:04]}  Nxc5 {[%clk 0:00:03]} 41. Kf4 {[%clk 0:00:05]}  Bxf3 {[%clk 0:00:03]} 42. Kxf3 {[%clk 0:00:05]}  Nd3 {[%clk 0:00:04]} 43. Bd4 {[%clk 0:00:06]}  a6 {[%clk 0:00:03]} 44. a3 {[%clk 0:00:05]}  Nc1 {[%clk 0:00:03]} 45. b4 {[%clk 0:00:05]}  Ne6 {[%clk 0:00:04]} 46. Be3 {[%clk 0:00:05]}  Nd3 {[%clk 0:00:04]} 47. Ke2 {[%clk 0:00:04]}  Ne5 {[%clk 0:00:05]} 48. a4 {[%clk 0:00:04]}  Kd7 {[%clk 0:00:05]} 49. b5 {[%clk 0:00:04]}  axb5 {[%clk 0:00:05]} 50. axb5 {[%clk 0:00:05]}  Kd6 {[%clk 0:00:05]} 51. Bg1 {[%clk 0:00:04]}  Kd5 {[%clk 0:00:05]} 52. Bh2 {[%clk 0:00:04]}  f4 {[%clk 0:00:05]} 53. b6 {[%clk 0:00:04]}  Kc6 {[%clk 0:00:05]} 54. g3 {[%clk 0:00:04]}  f3+ {[%clk 0:00:05]} 55. Kf2 {[%clk 0:00:05]}  Ng4+ {[%clk 0:00:04]} 56. Kxf3 {[%clk 0:00:05]}  Nxh2+ {[%clk 0:00:05]} 57. Ke4 {[%clk 0:00:05]}  Kxb6 {[%clk 0:00:04]} 58. Kf5 {[%clk 0:00:06]}  Nf8 {[%clk 0:00:03]} 59. g4 {[%clk 0:00:05]}  Nxg4 {[%clk 0:00:03]} 60. Kxg4 {[%clk 0:00:06]}  Kc6 {[%clk 0:00:03]} 61. Kf5 {[%clk 0:00:06]}  Kd5 {[%clk 0:00:04]} 62. h5 {[%clk 0:00:06]}  Kd4 {[%clk 0:00:03]} 63. Kf6 {[%clk 0:00:06]}  Ke4 {[%clk 0:00:03]} 64. Kg7 {[%clk 0:00:06]}  Kf5 {[%clk 0:00:03]} 65. Kxf8 {[%clk 0:00:06]}  Kg5 {[%clk 0:00:03]} 66. Kf7 {[%clk 0:00:02]}  Kxh5 {[%clk 0:00:03]} 67. Kf6 {[%clk 0:00:02]}  Kg4 {[%clk 0:00:03]} 68. Ke5 {[%clk 0:00:03]}  h5 {[%clk 0:00:04]} 69. Ke4 {[%clk 0:00:04]}  Kg3 {[%clk 0:00:04]} 70. Ke3 {[%clk 0:00:05]}  h4 {[%clk 0:00:05]} 0-1


[Site "https://www.chess.com"]

[Event "Titled Tuesday Blitz April 11 Late 2023"]
[White "Javakhadze, Zurab"]
[Black "Licznerski, Lukasz"]
[WhiteFideId "13603647"]
[BlackFideId "1179250"]
[WhiteElo "2381"]
[BlackElo "2450"]
[Result "1-0"]
[Round "03"]
[TimeControl "180+2"]
[Date "2023.04.11"]
[WhiteClock "0:00:06"]
[BlackClock "0:00:07"]

1. Nf3 {[%clk 0:02:59]}  Nf6 {[%clk 0:02:59]} 2. g3 {[%clk 0:03:00]}  g6 {[%clk 0:02:59]} 3. Bg2 {[%clk 0:03:00]}  Bg7 {[%clk 0:03:00]} 4. O-O {[%clk 0:02:59]}  d5 {[%clk 0:03:00]} 5. d4 {[%clk 0:02:58]}  O-O {[%clk 0:02:59]} 6. c4 {[%clk 0:02:56]}  dxc4 {[%clk 0:03:00]} 7. Na3 {[%clk 0:02:49]}  c3 {[%clk 0:03:01]} 8. bxc3 {[%clk 0:02:44]}  c5 {[%clk 0:03:01]} 9. Nc4 {[%clk 0:02:40]}  Nc6 {[%clk 0:03:01]} 10. Ba3 {[%clk 0:02:38]}  Be6 {[%clk 0:02:48]} 11. Nce5 {[%clk 0:02:31]}  Nxe5 {[%clk 0:02:23]} 12. Nxe5 {[%clk 0:02:31]}  cxd4 {[%clk 0:02:06]} 13. cxd4 {[%clk 0:02:25]}  Bd5 {[%clk 0:02:06]} 14. e3 {[%clk 0:02:18]}  Bxg2 {[%clk 0:02:02]} 15. Kxg2 {[%clk 0:02:19]}  Ne4 {[%clk 0:01:46]} 16. Rc1 {[%clk 0:02:03]}  Bxe5 {[%clk 0:01:30]} 17. dxe5 {[%clk 0:02:01]}  Nd2 {[%clk 0:01:30]} 18. Re1 {[%clk 0:01:57]}  Qd5+ {[%clk 0:01:12]} 19. e4 {[%clk 0:01:55]}  Qxa2 {[%clk 0:01:09]} 20. Bxe7 {[%clk 0:01:52]}  Rfc8 {[%clk 0:01:09]} 21. Re2 {[%clk 0:01:17]}  Qe6 {[%clk 0:01:02]} 22. Bf6 {[%clk 0:01:13]}  Nc4 {[%clk 0:00:51]} 23. Rec2 {[%clk 0:00:59]}  b5 {[%clk 0:00:50]} 24. Qf3 {[%clk 0:00:52]}  h5 {[%clk 0:00:38]} 25. Qf4 {[%clk 0:00:39]}  Kh7 {[%clk 0:00:38]} 26. h3 {[%clk 0:00:40]}  b4 {[%clk 0:00:27]} 27. g4 {[%clk 0:00:33]}  b3 {[%clk 0:00:28]} 28. Rc3 {[%clk 0:00:14]}  b2 {[%clk 0:00:27]} 29. Rb1 {[%clk 0:00:15]}  Nxe5 {[%clk 0:00:14]} 30. Bxe5 {[%clk 0:00:12]}  Rxc3 {[%clk 0:00:12]} 31. Bxc3 {[%clk 0:00:13]}  Rc8 {[%clk 0:00:12]} 32. Bxb2 {[%clk 0:00:11]}  Rc4 {[%clk 0:00:11]} 33. Be5 {[%clk 0:00:08]}  Rc5 {[%clk 0:00:08]} 34. Bf6 {[%clk 0:00:04]}  Rc4 {[%clk 0:00:03]} 35. Rb8 {[%clk 0:00:04]}  Rc8 {[%clk 0:00:02]} 36. Rxc8 {[%clk 0:00:04]}  Qxc8 {[%clk 0:00:03]} 37. gxh5 {[%clk 0:00:04]}  gxh5 {[%clk 0:00:04]} 38. Qg5 {[%clk 0:00:04]}  Qg8 {[%clk 0:00:04]} 39. Qxg8+ {[%clk 0:00:03]}  Kxg8 {[%clk 0:00:04]} 40. Kg3 {[%clk 0:00:04]}  Kh7 {[%clk 0:00:05]} 41. Kf4 {[%clk 0:00:05]}  Kg6 {[%clk 0:00:06]} 42. Ba1 {[%clk 0:00:05]}  a5 {[%clk 0:00:06]} 43. f3 {[%clk 0:00:05]}  a4 {[%clk 0:00:07]} 44. e5 {[%clk 0:00:06]} 1-0


[Site "https://www.chess.com"]

[Event "Titled Tuesday Blitz April 11 Late 2023"]
[White "Talibov, Shiroghlan"]
[Black "Colas, Joshua"]
[WhiteFideId "13429078"]
[BlackFideId "2044447"]
[WhiteElo "2224"]
[BlackElo "2347"]
[Result "1/2-1/2"]
[Round "03"]
[TimeControl "180+2"]
[Date "2023.04.11"]
[WhiteClock "0:00:11"]
[BlackClock "0:00:18"]

1. c4 {[%clk 0:03:00]}  e6 {[%clk 0:02:58]} 2. Nc3 {[%clk 0:03:00]}  d5 {[%clk 0:02:57]} 3. d4 {[%clk 0:02:59]}  Nf6 {[%clk 0:02:53]} 4. Nf3 {[%clk 0:02:58]}  a6 {[%clk 0:02:52]} 5. cxd5 {[%clk 0:02:37]}  exd5 {[%clk 0:02:53]} 6. Bf4 {[%clk 0:02:36]}  Bd6 {[%clk 0:02:44]} 7. Bxd6 {[%clk 0:02:35]}  Qxd6 {[%clk 0:02:39]} 8. e3 {[%clk 0:02:35]}  O-O {[%clk 0:02:39]} 9. Bd3 {[%clk 0:02:34]}  Bg4 {[%clk 0:02:37]} 10. h3 {[%clk 0:02:33]}  Bh5 {[%clk 0:02:36]} 11. Rc1 {[%clk 0:02:33]}  c6 {[%clk 0:02:37]} 12. Ne2 {[%clk 0:02:32]}  Bg6 {[%clk 0:02:36]} 13. O-O {[%clk 0:02:29]}  Nbd7 {[%clk 0:02:36]} 14. Nf4 {[%clk 0:02:25]}  Bxd3 {[%clk 0:02:36]} 15. Nxd3 {[%clk 0:02:26]}  Ne4 {[%clk 0:02:37]} 16. Nd2 {[%clk 0:02:16]}  f5 {[%clk 0:02:27]} 17. f4 {[%clk 0:02:13]}  Nxd2 {[%clk 0:02:25]} 18. Qxd2 {[%clk 0:02:14]}  Nf6 {[%clk 0:02:25]} 19. Ne5 {[%clk 0:02:14]}  Ne4 {[%clk 0:02:25]} 20. Qa5 {[%clk 0:02:08]}  Rae8 {[%clk 0:01:52]} 21. Qa3 {[%clk 0:01:41]}  Qxa3 {[%clk 0:01:25]} 22. bxa3 {[%clk 0:01:42]}  Re7 {[%clk 0:01:25]} 23. Rc2 {[%clk 0:01:39]}  Nd6 {[%clk 0:01:21]} 24. a4 {[%clk 0:01:37]}  a5 {[%clk 0:01:13]} 25. Kh2 {[%clk 0:01:35]}  g6 {[%clk 0:01:13]} 26. g4 {[%clk 0:01:34]}  Rfe8 {[%clk 0:01:07]} 27. Kg3 {[%clk 0:01:15]}  fxg4 {[%clk 0:01:03]} 28. hxg4 {[%clk 0:01:15]}  Nc4 {[%clk 0:01:00]} 29. Kf3 {[%clk 0:01:08]}  Nb6 {[%clk 0:00:58]} 30. Rh2 {[%clk 0:00:55]}  Nxa4 {[%clk 0:00:56]} 31. Rfh1 {[%clk 0:00:54]}  Nb6 {[%clk 0:00:42]} 32. f5 {[%clk 0:00:44]}  Nc4 {[%clk 0:00:37]} 33. f6 {[%clk 0:00:20]}  Nxe5+ {[%clk 0:00:22]} 34. dxe5 {[%clk 0:00:21]}  Rxe5 {[%clk 0:00:23]} 35. Rxh7 {[%clk 0:00:21]}  Rxe3+ {[%clk 0:00:22]} 36. Kf4 {[%clk 0:00:21]}  R3e4+ {[%clk 0:00:19]} 37. Kf3 {[%clk 0:00:18]}  Re3+ {[%clk 0:00:19]} 38. Kf4 {[%clk 0:00:18]}  R3e4+ {[%clk 0:00:20]} 39. Kg3 {[%clk 0:00:12]}  Re3+ {[%clk 0:00:18]} 40. Kf2 {[%clk 0:00:12]}  Re2+ {[%clk 0:00:18]} 41. Kf3 {[%clk 0:00:11]}  R2e3+ {[%clk 0:00:18]} 1/2-1/2


[Site "https://www.chess.com"]

[Event "Titled Tuesday Blitz April 11 Late 2023"]
[White "Manukyan, Sargis A."]
[Black "Kevlishvili, Robby"]
[WhiteFideId "13303970"]
[BlackFideId "1040634"]
[WhiteElo "2187"]
[BlackElo "2572"]
[Result "1-0"]
[Round "03"]
[TimeControl "180+2"]
[Date "2023.04.11"]
[WhiteClock "0:00:19"]
[BlackClock "0:00:59"]

1. d4 {[%clk 0:03:00]}  Nf6 {[%clk 0:03:00]} 2. c4 {[%clk 0:03:00]}  g6 {[%clk 0:02:58]} 3. Nc3 {[%clk 0:03:00]}  Bg7 {[%clk 0:02:58]} 4. Nf3 {[%clk 0:03:00]}  d5 {[%clk 0:02:57]} 5. cxd5 {[%clk 0:02:59]}  Nxd5 {[%clk 0:02:58]} 6. e4 {[%clk 0:03:00]}  Nxc3 {[%clk 0:02:57]} 7. bxc3 {[%clk 0:03:01]}  O-O {[%clk 0:02:58]} 8. Rb1 {[%clk 0:03:00]}  c5 {[%clk 0:02:57]} 9. Be2 {[%clk 0:02:59]}  b6 {[%clk 0:02:57]} 10. O-O {[%clk 0:02:57]}  Nc6 {[%clk 0:02:56]} 11. d5 {[%clk 0:02:57]}  Ne5 {[%clk 0:02:54]} 12. Nxe5 {[%clk 0:02:57]}  Bxe5 {[%clk 0:02:55]} 13. c4 {[%clk 0:02:57]}  Qc7 {[%clk 0:02:53]} 14. f4 {[%clk 0:02:49]}  Bd4+ {[%clk 0:02:54]} 15. Kh1 {[%clk 0:02:49]}  e5 {[%clk 0:02:54]} 16. f5 {[%clk 0:02:33]}  f6 {[%clk 0:02:54]} 17. Rb3 {[%clk 0:02:12]}  gxf5 {[%clk 0:02:50]} 18. exf5 {[%clk 0:02:11]}  Kh8 {[%clk 0:02:51]} 19. Rh3 {[%clk 0:02:05]}  Rg8 {[%clk 0:02:50]} 20. Bd3 {[%clk 0:02:00]}  Qg7 {[%clk 0:02:48]} 21. Be4 {[%clk 0:01:57]}  Bd7 {[%clk 0:02:42]} 22. Qh5 {[%clk 0:01:46]}  Be8 {[%clk 0:02:36]} 23. Qh4 {[%clk 0:01:46]}  Rd8 {[%clk 0:02:29]} 24. Bh6 {[%clk 0:01:42]}  Qf7 {[%clk 0:02:24]} 25. g4 {[%clk 0:01:24]}  b5 {[%clk 0:02:08]} 26. g5 {[%clk 0:01:21]}  fxg5 {[%clk 0:01:35]} 27. Bxg5 {[%clk 0:01:21]}  Rd6 {[%clk 0:01:35]} 28. f6 {[%clk 0:01:17]}  Rg6 {[%clk 0:01:35]} 29. Bxg6 {[%clk 0:00:51]}  Qxg6 {[%clk 0:01:36]} 30. f7 {[%clk 0:00:51]}  Bxf7 {[%clk 0:01:36]} 31. Bf6+ {[%clk 0:00:28]}  Kg8 {[%clk 0:01:20]} 32. Rg3 {[%clk 0:00:27]}  bxc4 {[%clk 0:01:17]} 33. Rxg6+ {[%clk 0:00:26]}  Bxg6 {[%clk 0:01:17]} 34. Be7 {[%clk 0:00:20]}  Rb6 {[%clk 0:01:00]} 35. d6 {[%clk 0:00:21]}  Bf2 {[%clk 0:00:59]} 36. Qxf2 {[%clk 0:00:19]} 1-0


[Site "https://www.chess.com"]